bitfinex/quotes_ETHUSD_20250131
["timestamp","ask_amount","ask_price","bid_price","bid_amount"]
[1738359673660,3.02006,3311.2,3310.5,0.05064823]
[1738359673855,3.02041,3310.8,3310.5,0.05064823]
[1738359674098,3.02085,3310.4,3309.9,0.60194902]
[1738359674291,3.02062,3310.6,3309.9,3.62317902]
[1738359674648,0.214,3310.9,3310.3,3.02087]
[1738359674802,0.214,3310.9,3310.5,3.02067]
[1738359675357,0.214,3310.9,3310.3,3.02084]
[1738359675603,0.214,3310.9,3310.4,3.02076]
[1738359676679,0.214,3310.9,3310.4,3.6214387]
[1738359676880,0.214,3310.9,3310.6,3.02059]
[1738359677294,0.214,3310.9,3310.7,3.02045]
[1738359678003,0.7748,3311.4,3310.8,3.0204]
[1738359678203,0.7748,3311.4,3310.5,0.8252]
[1738359678204,3.01977,3311.6,3310.9,3.02024]
[1738359678440,3.01978,3311.5,3310.9,3.02024]
[1738359678726,3.01981,3311.5,3310.9,3.02024]
[1738359678927,3.23361,3311.7,3311.0,3.02019]
[1738359679093,3.85274,3311.8,3311.2,3.01999]
[1738359679293,3.0196,3311.7,3311.0,3.02016]
[1738359679483,3.01969,3311.6,3311.0,3.02016]
[1738359679923,0.8332,3311.8,3311.0,0.60108313]
[1738359680223,0.8332,3311.8,3311.1,3.02007]
[1738359680224,3.01966,3311.7,3311.1,3.02007]
[1738359680993,3.01968,3311.6,3311.1,3.02007]
[1738359681622,3.85273,3311.8,3311.1,3.02007]
[1738359681926,3.01961,3311.7,3311.1,3.02007]
[1738359682445,3.01961,3311.7,3311.2,3.02005]
[1738359682747,0.8332,3311.8,3311.1,3.02014]
[1738359682898,0.8332,3311.8,3311.2,3.02002]
[1738359683313,3.85272,3311.8,3311.2,3.02002]
[1738359684023,3.01969,3311.6,3311.0,3.62130313]
[1738359684546,0.762,3311.3,3310.7,0.60785658]
[1738359684754,4.33205,3311.2,3311.1,0.04970959]
[1738359685045,3.02085,3310.4,3309.5,0.8233]
[1738359685244,3.02085,3310.4,3309.5,3.84486]
[1738359685401,3.02085,3310.4,3309.7,3.02136]
[1738359685596,0.762,3311.1,3311.0,3.02023]
[1738359685829,0.762,3311.6,3311.2,3.02002]
[1738359686031,0.762,3311.6,3311.0,3.02023]
[1738359686400,3.01994,3311.4,3310.8,3.0204]
[1738359686646,0.762,3311.6,3310.8,3.0204]
[1738359686806,3.78173,3311.6,3310.9,3.02029]
[1738359687456,0.762,3311.6,3310.5,0.8233]
[1738359687750,3.01931,3312.1,3311.4,3.01981]
[1738359687949,3.23305,3312.3,3311.4,3.01981]
[1738359688118,3.23305,3312.3,3311.6,3.0196]
[1738359688445,3.01939,3312.0,3311.4,3.01987]
[1738359688746,3.01917,3312.2,3311.5,3.01976]
[1738359689120,3.23307,3312.3,3311.2,1.38738704]
[1738359689313,0.8297,3311.7,3311.2,0.60498704]
[1738359689519,3.01918,3312.2,3311.2,0.60498704]
[1738359689520,3.01933,3312.0,3311.3,3.01989]
[1738359689861,0.8297,3312.1,3311.2,0.60498704]
[1738359689862,0.8297,3312.1,3311.6,3.01963]
[1738359690024,3.01935,3312.0,3311.5,3.01974]
[1738359690358,3.01935,3312.0,3311.4,3.01985]
[1738359690504,3.01958,3311.8,3311.2,3.62497704]
[1738359691004,3.0196,3311.7,3311.2,0.60498704]
[1738359691222,3.01969,3311.6,3311.2,0.60498704]
[1738359691519,3.01958,3311.8,3311.2,0.60498704]
[1738359691857,3.01768,3313.8,3313.1,3.01826]
[1738359692166,0.792,3313.9,3313.2,0.301826]
[1738359692320,3.01812,3313.4,3313.2,0.04591633]
[1738359692652,3.01834,3313.1,3312.4,3.01894]
[1738359693003,0.792,3313.3,3312.6,3.01875]
[1738359693201,0.792,3313.3,3312.7,3.01862]
[1738359693667,3.81014,3313.3,3312.7,3.01862]
[1738359694254,3.0183,3313.2,3312.1,3.01916]
[1738359694400,3.01849,3313.0,3312.3,3.01898]
[1738359694904,3.0185,3312.9,3312.3,3.01898]
[1738359695608,3.0183,3313.2,3312.3,3.01898]
[1738359695609,3.2333,3313.2,3312.5,3.01878]
[1738359695800,3.01833,3313.1,3312.5,3.01878]
[1738359696002,3.01833,3313.1,3312.0,3.01924]
[1738359696003,3.01875,3312.7,3312.0,3.01924]
[1738359696234,3.01875,3312.7,3312.1,0.61673129]
[1738359696457,0.55,3313.0,3311.6,0.7624]
[1738359696610,3.01926,3312.1,3311.6,0.61014202]
[1738359696812,3.01926,3312.1,3311.5,3.01977]
[1738359697013,3.01896,3312.4,3311.3,1.35204879]
[1738359697296,3.01896,3312.4,3311.7,3.01955]
[1738359697636,3.7989,3312.6,3311.7,3.01955]
[1738359697803,3.01888,3312.5,3311.9,3.01934]
[1738359698557,3.01888,3312.5,3311.7,3.01955]
[1738359698558,3.01905,3312.3,3311.7,3.01955]
[1738359698755,3.01893,3312.5,3311.8,3.01948]
[1738359698955,4.0129,3312.6,3311.8,3.01948]
[1738359699156,3.01895,3312.4,3311.8,3.01948]
[1738359699360,3.01917,3312.2,3311.4,3.01984]
[1738359699655,0.8314,3311.9,3311.5,0.0466381]
[1738359699872,0.8314,3311.9,3311.3,3.60953879]
[1738359700160,0.8314,3311.9,3311.6,0.04655918]
[1738359700309,3.01961,3311.7,3311.3,0.58964879]
[1738359700506,1.03579403,3311.9,3311.7,0.04648026]
[1738359700507,3.01956,3311.8,3311.7,0.04648026]
[1738359700720,3.0197,3311.6,3311.0,3.02017]
[1738359701131,3.0197,3311.6,3311.1,0.04695386]
[1738359701375,3.01956,3311.8,3311.2,0.59392056]
[1738359701713,3.01961,3311.7,3311.3,0.04679597]
[1738359702035,3.01961,3311.7,3311.4,0.04671704]
[1738359702361,3.01961,3311.7,3311.2,0.59392056]
[1738359702558,3.01961,3311.7,3311.5,0.0466381]
[1738359702859,0.8314,3311.9,3311.6,0.04655918]
[1738359703060,1.0454,3311.9,3311.3,3.01993]
[1738359703263,1.0454,3311.9,3311.7,0.04648026]
[1738359703577,1.0454,3311.9,3311.5,3.01974]
[1738359703719,1.0454,3311.9,3311.8,0.04640134]
[1738359703919,1.0454,3311.9,3311.5,3.01974]
[1738359704166,1.0454,3311.9,3311.8,0.04640134]
[1738359704363,4.06487,3311.9,3311.2,0.59392056]
[1738359704565,3.01969,3311.6,3311.2,0.59392056]
[1738359704805,4.06484,3311.9,3311.2,0.59392056]
[1738359704806,3.01954,3311.8,3311.2,3.61396056]
[1738359705064,3.01959,3311.7,3311.2,3.61396056]
[1738359705215,3.01959,3311.7,3311.2,0.59392056]
[1738359706059,3.01969,3311.6,3311.2,0.59392056]
[1738359707314,3.0198,3311.5,3310.3,3.0]
[1738359707519,1.0454,3311.9,3310.2,3.0]
[1738359707762,3.01973,3311.6,3310.9,3.02025]
[1738359708262,3.01979,3311.5,3310.9,3.02025]
[1738359708451,3.01979,3311.5,3310.8,0.60849167]
[1738359708452,3.01987,3311.4,3310.8,0.60849167]
[1738359708758,3.01987,3311.4,3310.8,3.62885167]
[1738359708965,3.01973,3311.6,3311.0,3.02022]
[1738359709369,3.01953,3311.8,3311.2,3.02004]
[1738359709659,3.0196,3311.7,3311.0,6.04032]
[1738359709863,3.0196,3311.7,3311.0,3.02016]
[1738359710071,3.0196,3311.7,3311.1,3.02011]
[1738359710575,0.214,3311.7,3311.3,3.0199]
[1738359711074,0.214,3311.7,3311.1,3.02008]
[1738359711225,3.2336,3311.7,3311.1,3.02008]
[1738359712063,3.2336,3311.7,3311.1,6.04016]
[1738359712433,3.2336,3311.7,3311.1,3.02008]
[1738359713098,0.214,3311.7,3311.2,3.02004]
[1738359714391,3.23364,3311.7,3311.2,3.02004]
[1738359714592,3.23364,3311.7,3310.9,3.02027]
[1738359714747,3.23364,3311.7,3311.3,0.04746068]
[1738359715090,3.01974,3311.6,3311.4,0.04735771]
[1738359715291,3.01974,3311.6,3311.0,3.02014]
[1738359715446,3.01974,3311.6,3311.5,0.04727877]
[1738359715645,3.23364,3311.7,3310.9,3.02027]
[1738359715894,3.23364,3311.7,3311.5,0.04727877]
[1738359716097,3.23364,3311.7,3311.1,3.02007]
[1738359716301,3.23364,3311.7,3311.6,0.04719985]
[1738359716474,3.23364,3311.7,3311.1,3.02007]
[1738359716797,3.23364,3311.7,3311.6,0.04719985]
[1738359716957,3.23364,3311.7,3311.1,3.02007]
[1738359717158,3.23364,3311.7,3311.6,0.04719985]
[1738359717358,3.01971,3311.6,3311.0,3.02021]
[1738359717657,3.0191,3312.3,3310.8,0.60849167]
[1738359717857,0.8207,3312.4,3311.8,3.01942]
[1738359718054,0.214,3312.5,3312.1,3.01919]
[1738359718471,2.77730716,3313.1,3312.0,3.01929]
[1738359718472,0.755,3313.1,3312.6,3.01877]
[1738359719005,3.01858,3312.9,3312.2,3.0191]
[1738359719160,3.01848,3313.0,3312.2,3.0191]
[1738359719363,3.01848,3313.0,3311.9,0.7532]
[1738359719364,3.01848,3313.0,3312.1,0.59993833]
[1738359719560,3.01863,3312.8,3312.2,3.01907]
[1738359719789,3.01852,3312.9,3312.3,3.01899]
[1738359720014,3.01848,3313.0,3312.3,3.01899]
[1738359720159,5.79538716,3313.4,3313.2,3.01822]
[1738359720160,0.7585,3313.4,3313.2,3.01822]
[1738359720511,0.7585,3313.9,3313.6,3.01786]
[1738359720688,1.65767393,3314.1,3313.5,0.8223]
[1738359720906,1.65767393,3314.1,3313.6,3.01784]
[1738359721661,1.65767393,3314.1,3314.0,3.0175]
[1738359723105,3.01647,3315.2,3314.7,3.01681]
[1738359723106,0.8043,3315.2,3314.7,3.01681]
[1738359723364,0.8043,3315.5,3315.0,3.01652]
[1738359723994,1.0183,3315.9,3315.4,3.01622]
[1738359724204,1.0183,3315.9,3315.5,3.01613]
[1738359724406,1.0183,3315.9,3315.4,3.01622]
[1738359725192,1.0183,3315.9,3315.2,3.01638]
[1738359725193,3.01595,3315.7,3314.8,3.01675]
[1738359725412,3.016,3315.7,3314.8,3.01675]
[1738359725594,3.01615,3315.5,3314.8,3.01675]
[1738359725904,3.01626,3315.4,3314.8,3.01675]
[1738359726307,3.01623,3315.4,3314.8,3.01675]
[1738359726611,3.01623,3315.4,3314.6,4.37824354]
[1738359727098,3.01623,3315.4,3314.7,0.03858232]
[1738359727444,3.0164,3315.3,3314.7,0.03858232]
[1738359728712,3.0164,3315.3,3314.7,3.05540232]
[1738359729864,3.23013,3315.5,3314.7,3.05540232]
[1738359730069,3.01602,3315.7,3314.9,3.0166]
[1738359730302,0.214,3315.6,3314.9,3.0166]
[1738359730468,3.23013,3315.6,3315.0,0.03828483]
[1738359731234,3.01623,3315.4,3315.0,0.03828483]
[1738359731612,3.01623,3315.4,3314.8,3.01677]
[1738359731817,3.01623,3315.4,3315.1,0.03820607]
[1738359732127,3.01623,3315.4,3315.2,0.03812732]
[1738359732300,0.214,3315.6,3315.2,0.03812732]
[1738359732501,3.2301,3315.6,3314.9,3.01667]
[1738359732700,3.2301,3315.6,3315.3,0.03804857]
[1738359732902,0.214,3315.6,3315.0,3.01654]
[1738359733102,0.214,3315.6,3315.4,0.03796982]
[1738359733436,0.214,3315.6,3315.0,3.01654]
[1738359733636,0.214,3315.6,3315.5,0.03789108]
[1738359733842,3.82007,3315.9,3314.6,1.36130354]
[1738359733843,3.82007,3315.9,3315.2,3.01638]
[1738359734143,3.01604,3315.6,3315.0,3.01657]
[1738359734442,3.01604,3315.6,3315.3,0.03804857]
[1738359734610,3.01622,3315.4,3315.3,0.03804857]
[1738359734818,3.01604,3315.6,3314.8,3.01676]
[1738359735244,3.01621,3315.5,3314.9,0.0383636]
[1738359735615,0.5575,3315.8,3314.9,0.0383636]
[1738359735918,3.83019,3315.0,3314.9,0.0383636]
[1738359736233,3.01669,3314.9,3314.3,3.01714]
[1738359737135,3.83019,3315.0,3314.3,3.01714]
[1738359737850,3.83019,3315.0,3314.3,3.61262898]
[1738359738853,3.83019,3315.0,3314.4,3.01713]
[1738359739011,3.53019,3315.0,3314.4,3.01713]
[1738359739422,3.53019,3315.0,3314.3,0.59548898]
[1738359739757,3.01687,3314.7,3314.1,3.8133]
[1738359740109,3.01709,3314.5,3313.7,3.01775]
[1738359740342,3.01728,3314.3,3313.7,3.01775]
[1738359740807,3.01709,3314.5,3313.8,3.61658019]
[1738359741008,3.01709,3314.5,3314.0,3.01749]
[1738359741264,3.01709,3314.5,3313.8,0.59897019]
[1738359741814,3.01709,3314.5,3314.0,3.01749]
[1738359742557,3.01716,3314.4,3313.8,3.61658019]
[1738359742853,3.83043,3314.2,3313.8,0.59897019]
[1738359743063,0.8131,3314.2,3313.8,0.59897019]
[1738359743555,3.01714,3314.4,3313.8,3.61663019]
[1738359744239,3.01656,3315.1,3314.4,3.01705]
[1738359744556,0.214,3315.0,3314.4,3.01705]
[1738359744708,3.78971,3315.3,3314.6,3.01693]
[1738359744907,0.214,3315.3,3315.1,3.01648]
[1738359745142,3.01598,3315.7,3315.1,3.01643]
[1738359745411,0.214,3315.6,3315.5,3.01607]
[1738359745755,0.214,3315.6,3315.5,3.05403823]
[1738359746842,0.214,3315.6,3315.5,0.03796823]
[1738359747355,0.214,3315.6,3315.5,0.03778731]
[1738359748614,0.55,3316.1,3315.5,0.03778731]
[1738359748944,3.01604,3315.6,3315.0,3.01654]
[1738359749140,3.0159,3315.8,3315.6,0.03770858]
[1738359749455,3.01606,3315.6,3315.0,3.01654]
[1738359750024,3.01591,3315.8,3315.2,3.0164]
[1738359750176,3.01591,3315.8,3315.3,3.01628]
[1738359750547,3.01591,3315.8,3315.1,3.62384822]
[1738359751271,3.01591,3315.8,3315.1,0.60741822]
[1738359751469,3.01591,3315.8,3315.2,3.0164]
[1738359752231,6.03186,3315.8,3315.2,3.0164]
[1738359752434,3.01624,3315.4,3315.1,0.60741822]
[1738359753138,3.01655,3315.1,3314.4,3.82026]
[1738359753339,3.0166,3315.0,3314.4,4.8085241]
[1738359753891,3.0166,3315.0,3314.5,3.01703]
[1738359754184,3.0166,3315.0,3314.4,4.8085241]
[1738359754356,3.0166,3315.0,3314.6,0.03729708]
[1738359754563,3.0167,3314.9,3314.4,4.8085241]
[1738359754784,3.0167,3314.9,3314.7,0.0372183]
[1738359754989,3.0166,3315.0,3314.5,0.48085241]
[1738359755290,3.01641,3315.2,3314.8,0.03713953]
[1738359755493,3.0167,3314.9,3314.4,1.7914641]
[1738359755660,3.0167,3314.9,3314.6,0.03729708]
[1738359755865,3.0167,3314.9,3314.4,4.8085941]
[1738359756289,3.0167,3314.9,3314.4,4.0053941]
[1738359756695,3.0169,3314.7,3314.2,3.01727]
[1738359756901,0.214,3315.1,3314.1,0.7907]
[1738359757067,3.01679,3314.8,3314.3,3.616715]
[1738359757812,3.0169,3314.7,3314.3,0.599535]
[1738359757981,3.0169,3314.7,3314.1,3.01735]
[1738359758185,3.01697,3314.6,3314.1,3.620831]
[1738359758483,3.01697,3314.6,3314.1,3.01735]
[1738359758881,3.01697,3314.6,3313.9,3.01752]
[1738359759304,3.01697,3314.6,3314.0,3.01746]
[1738359760116,3.0169,3314.7,3314.0,3.01746]
[1738359760316,3.0172,3314.4,3313.8,3.77444]
[1738359760622,3.01703,3314.6,3313.8,4.453665]
[1738359760785,0.8206,3314.8,3314.3,3.01717]
[1738359761114,3.83737,3314.8,3314.3,3.01717]
[1738359761415,3.83737,3314.8,3313.8,3.77441]
[1738359761416,3.01697,3314.6,3313.8,3.77441]
[1738359761574,3.01697,3314.6,3313.8,4.151851]
[1738359761772,3.01691,3314.7,3314.2,3.01729]
[1738359762005,3.01695,3314.6,3314.0,3.01745]
[1738359762625,0.214,3314.7,3314.1,3.05526826]
[1738359762832,0.214,3314.7,3314.3,3.0172]
[1738359763008,0.214,3314.7,3314.2,3.32282683]
[1738359763332,0.214,3314.7,3314.4,0.03766186]
[1738359763527,0.214,3314.7,3314.3,0.03774066]
[1738359763528,3.23087,3314.7,3314.3,0.03774066]
[1738359763830,3.23087,3314.7,3314.2,0.30552683]
[1738359763999,3.23087,3314.7,3314.4,0.03766186]
[1738359764183,3.23087,3314.7,3314.3,0.03774066]
[1738359764385,3.01695,3314.6,3314.1,3.01737]
[1738359764585,3.01695,3314.6,3314.4,0.03766186]
[1738359764787,3.01695,3314.6,3314.1,3.01737]
[1738359765029,3.01695,3314.6,3314.5,0.03758308]
[1738359765258,3.01695,3314.6,3314.1,3.620863]
[1738359765732,3.01695,3314.6,3314.2,0.03781946]
[1738359766018,3.01706,3314.5,3314.2,0.03781946]
[1738359766427,3.01706,3314.5,3313.9,3.01756]
[1738359766632,3.01706,3314.5,3314.3,0.03774066]
[1738359766915,3.01706,3314.5,3313.9,3.79450597]
[1738359766916,3.01706,3314.5,3314.4,0.03766186]
[1738359767111,3.01706,3314.5,3313.9,3.79450597]
[1738359767347,3.01706,3314.5,3314.4,0.03766186]
[1738359767545,3.01706,3314.5,3313.9,3.79450597]
[1738359767755,3.01695,3314.6,3314.4,0.03766186]
[1738359767960,3.01695,3314.6,3313.9,3.01756]
[1738359768148,3.01714,3314.4,3313.9,3.01756]
[1738359769461,3.01714,3314.4,3313.9,3.01754]
[1738359769647,3.01695,3314.6,3313.9,3.01751]
[1738359769849,3.01695,3314.6,3314.0,3.01747]
[1738359770058,3.01705,3314.5,3314.0,3.01747]
[1738359770760,0.8206,3314.8,3314.1,3.01734]
[1738359770929,0.213,3314.9,3314.4,3.0171]
[1738359771255,0.213,3314.9,3314.2,3.01731]
[1738359771450,3.01678,3314.8,3314.2,3.01731]
[1738359772323,3.01686,3314.7,3314.2,3.01731]
[1738359773170,3.01678,3314.8,3314.0,3.01744]
[1738359773372,3.01701,3314.6,3314.0,3.01744]
[1738359773559,3.01701,3314.6,3313.9,0.59139216]
[1738359773560,3.01713,3314.4,3313.9,0.59139216]
[1738359773757,3.01701,3314.6,3314.1,3.01739]
[1738359774629,3.2298,3314.8,3314.2,0.03781946]
[1738359774829,3.01691,3314.7,3314.2,0.03781946]
[1738359775533,3.01691,3314.7,3313.9,3.60893216]
[1738359775780,3.01691,3314.7,3314.1,3.0174]
[1738359775986,3.01731,3314.3,3313.3,3.79369]
[1738359776180,3.01786,3313.7,3313.3,0.7756]
[1738359776331,3.0177,3313.8,3312.9,3.79403]
[1738359776332,3.01793,3313.6,3312.9,3.79403]
[1738359776539,3.01793,3313.6,3313.0,3.397803]
[1738359777049,3.01796,3313.5,3313.0,0.379403]
[1738359777251,3.01811,3313.4,3312.9,0.7756]
[1738359777582,0.7731,3313.3,3312.6,0.60703618]
[1738359777779,3.01806,3313.4,3312.8,3.01857]
[1738359777963,0.213,3313.5,3312.6,0.60703618]
[1738359778280,0.213,3313.5,3313.1,3.01831]
[1738359778743,0.213,3314.3,3313.2,0.7616]
[1738359778949,0.7763,3314.7,3313.2,0.7616]
[1738359778950,3.01711,3314.5,3313.8,0.7616]
[1738359779165,0.7763,3314.7,3313.8,0.7616]
[1738359779364,3.79323,3314.7,3314.0,3.01741]
[1738359779564,3.79323,3314.7,3313.8,0.7616]
[1738359779565,3.0173,3314.3,3313.8,0.7616]
[1738359779769,3.0173,3314.3,3313.8,3.77925]
[1738359780179,3.0173,3314.3,3313.8,4.39697726]
[1738359781080,3.01705,3314.5,3313.9,3.01752]
[1738359781601,3.01759,3313.9,3313.5,0.7812]
[1738359781750,3.01721,3314.4,3313.8,3.01766]
[1738359782301,0.213,3314.6,3314.2,3.01725]
[1738359782597,0.8097,3315.1,3314.5,3.01704]
[1738359782747,0.8097,3315.1,3314.2,0.8092]
[1738359782748,3.01667,3315.0,3314.3,3.01722]
[1738359782948,0.8097,3315.1,3314.2,0.8092]
[1738359783175,0.8097,3315.1,3313.9,3.01758]
[1738359783176,3.01702,3314.6,3313.9,3.01758]
[1738359783382,3.01702,3314.6,3314.0,3.01749]
[1738359784655,3.01683,3314.8,3314.1,3.63514338]
[1738359784989,3.01687,3314.7,3314.1,3.63514338]
[1738359785569,0.8082,3315.8,3314.4,0.8173]
[1738359785780,3.82378,3316.2,3315.5,3.01611]
[1738359785992,0.8082,3316.2,3315.8,3.0158]
[1738359786308,0.09369803,3317.2,3316.2,3.82777]
[1738359786309,0.8293,3317.1,3316.2,3.82777]
[1738359786602,0.8293,3317.1,3316.4,3.01528]
[1738359786757,0.8293,3317.1,3316.5,3.01522]
[1738359787098,3.01488,3316.9,3316.2,0.8123]
[1738359787593,3.01488,3316.9,3316.2,3.82777]
[1738359787907,3.01528,3316.5,3315.8,3.01583]
[1738359788054,3.01528,3316.5,3315.7,0.8123]
[1738359788055,3.01541,3316.3,3315.7,0.8123]
[1738359788254,3.01541,3316.3,3315.7,3.82819]
[1738359788962,3.01542,3316.3,3315.9,0.60395309]
[1738359789162,3.01533,3316.4,3315.9,0.60395309]
[1738359789569,3.01533,3316.4,3316.0,0.03452028]
[1738359789872,3.01543,3316.3,3316.0,0.03452028]
[1738359790904,3.01559,3316.1,3316.0,0.03452028]
[1738359791203,3.22859,3316.1,3315.3,3.01625]
[1738359791359,3.01573,3316.0,3315.4,0.03499265]
[1738359791576,3.22859,3316.1,3315.4,0.03499265]
[1738359791577,3.01579,3315.9,3315.4,0.03499265]
[1738359791987,0.213,3316.3,3315.5,0.6049794]
[1738359792188,0.213,3316.6,3316.1,3.01553]
[1738359792396,0.213,3316.6,3316.2,0.03436286]
[1738359792720,0.8293,3316.2,3315.5,0.6049794]
[1738359792873,0.8293,3316.2,3315.7,3.01595]
[1738359793071,3.22815,3316.6,3315.7,3.01595]
[1738359793387,3.22815,3316.6,3316.0,3.01565]
[1738359793723,3.22815,3316.6,3315.5,0.6049794]
[1738359793880,3.22815,3316.6,3315.6,3.01602]
[1738359793881,3.01551,3316.2,3315.6,3.01602]
[1738359794092,3.22815,3316.6,3315.9,3.01573]
[1738359794412,3.01549,3316.2,3315.7,3.01592]
[1738359794782,3.01538,3316.4,3315.7,3.01592]
[1738359795272,3.01538,3316.4,3315.8,3.01584]
[1738359795386,0.213,3316.6,3316.0,3.01565]
[1738359795589,0.213,3316.6,3315.8,0.603176]
[1738359795590,0.213,3316.6,3315.7,3.01586]
[1738359795909,3.01546,3316.3,3315.7,3.01586]
[1738359797842,3.01546,3316.3,3315.5,3.6211094]
[1738359797843,0.09369803,3317.2,3316.6,3.01513]
[1738359798009,0.09369803,3317.2,3317.0,3.01475]
[1738359798494,0.09369803,3317.2,3317.1,3.01468]
[1738359798832,0.09369803,3317.2,3317.1,4.420423]
[1738359800005,0.09369803,3317.2,3317.1,1.405743]
[1738359800336,0.09369803,3317.2,3316.6,3.01507]
[1738359800538,3.10830803,3317.2,3316.4,3.01527]
[1738359800751,3.10830803,3317.2,3316.3,0.7689]
[1738359800752,3.01487,3316.9,3316.3,0.7689]
[1738359801043,3.10831803,3317.2,3316.4,3.01522]
[1738359801245,3.01487,3316.9,3316.3,3.78428]
[1738359801538,3.22772,3317.1,3316.5,3.01522]
[1738359802411,3.01483,3317.0,3316.4,0.43926898]
[1738359803313,3.01489,3316.9,3316.4,0.43926898]
[1738359804629,3.01489,3316.9,3316.5,0.03393588]
[1738359805033,3.01489,3316.9,3316.3,3.78428]
[1738359805221,3.01489,3316.9,3316.4,0.03401457]
[1738359805536,0.213,3317.1,3316.4,0.03401457]
[1738359805738,3.01522,3316.5,3316.4,0.03401457]
[1738359805959,3.01522,3316.5,3315.9,1.37368685]
[1738359805960,3.01542,3316.3,3315.9,1.37368685]
[1738359806140,3.01542,3316.3,3315.9,0.59768685]
[1738359806916,3.01556,3316.2,3315.9,0.59768685]
[1738359807110,3.01542,3316.3,3315.9,0.59768685]
[1738359807314,3.84747,3317.0,3316.1,3.01557]
[1738359807509,0.09369803,3317.2,3317.1,3.01468]
[1738359811888,0.01937279,3317.9,3317.8,3.01404]
[1738359812097,0.01937279,3317.9,3317.8,3.82744]
[1738359812236,0.01937279,3317.9,3317.8,4.511602]
[1738359812666,0.01937279,3317.9,3317.8,0.684162]
[1738359812871,0.01937279,3317.9,3317.3,0.8134]
[1738359813092,0.01937279,3317.9,3317.5,3.01431]
[1738359813264,0.01937279,3317.9,3317.6,3.01422]
[1738359813465,0.01937279,3317.9,3317.6,3.62158087]
[1738359813661,0.01937279,3317.9,3317.8,3.01404]
[1738359814172,0.01937279,3317.9,3317.6,1.27095096]
[1738359814906,0.01937279,3317.9,3317.6,4.28517096]
[1738359815406,0.01937279,3317.9,3317.6,1.27095096]
[1738359815613,0.01937279,3317.9,3317.8,3.01404]
[1738359815811,3.80934279,3317.9,3317.6,0.60736087]
[1738359815982,3.01413,3317.7,3317.6,0.60736087]
[1738359816493,3.01405,3317.8,3317.6,0.60736087]
[1738359816812,3.01413,3317.7,3317.6,0.60736087]
[1738359816969,6.82337279,3317.9,3317.6,0.60736087]
[1738359817819,3.80934279,3317.9,3317.6,0.60736087]
[1738359818024,3.01404,3317.8,3317.0,3.82815]
[1738359818228,3.01404,3317.8,3317.2,3.01459]
[1738359818831,3.01404,3317.8,3317.2,6.02918]
[1738359819125,0.01937279,3317.9,3317.4,0.61136873]
[1738359819685,0.01937279,3317.9,3317.5,0.03422177]
[1738359820189,3.01404,3317.8,3317.5,0.03422177]
[1738359822450,0.01937279,3317.9,3317.5,0.03422177]
[1738359822955,3.03333279,3317.9,3317.5,0.03422177]
[1738359823141,0.01937279,3317.9,3317.5,0.03422177]
[1738359824034,3.03332279,3317.9,3317.5,0.03422177]
[1738359824932,3.01407,3317.8,3317.5,0.03422177]
[1738359825706,0.01937279,3317.9,3317.5,0.03422177]
[1738359826303,3.03333279,3317.9,3317.5,0.03422177]
[1738359826945,3.01422,3317.6,3317.5,0.03422177]
[1738359827448,3.01442,3317.4,3316.9,3.01484]
[1738359828626,3.01442,3317.4,3317.0,0.60616666]
[1738359829022,3.01422,3317.6,3317.1,3.01463]
[1738359829931,3.01422,3317.6,3317.0,0.60616666]
[1738359830275,3.01441,3317.4,3317.0,0.60616666]
[1738359830487,3.01427,3317.6,3317.0,0.60616666]
[1738359830665,0.7588,3317.8,3317.0,0.60616666]
[1738359830666,3.01449,3317.4,3317.0,0.60616666]
[1738359830825,6.02898,3317.4,3317.0,0.60616666]
[1738359831227,3.01449,3317.4,3317.0,0.60616666]
[1738359832543,3.01449,3317.4,3317.0,0.96827333]
[1738359832868,3.01424,3317.6,3317.0,0.96827333]
[1738359833120,3.01435,3317.5,3317.0,0.96827333]
[1738359833284,3.01424,3317.6,3317.0,0.96827333]
[1738359833445,3.01441,3317.4,3317.0,0.60616666]
[1738359834681,3.01441,3317.4,3317.1,0.03438674]
[1738359842568,3.01423,3317.6,3317.1,0.03438674]
[1738359843103,3.01437,3317.5,3317.1,0.03438674]
[1738359843293,0.7588,3317.8,3317.1,0.03438674]
[1738359843492,3.01445,3317.4,3317.1,0.03438674]
[1738359843696,3.01444,3317.4,3317.1,0.03438674]
[1738359843851,3.01433,3317.5,3317.1,0.03438674]
[1738359844049,3.01443,3317.4,3317.1,0.03438674]
[1738359844876,3.01426,3317.6,3317.1,0.03438674]
[1738359846030,3.01432,3317.5,3317.1,0.03438674]
[1738359846240,3.01426,3317.6,3317.1,0.03438674]
[1738359846442,3.01459,3317.2,3317.1,0.03438674]
[1738359846734,3.01473,3317.1,3316.5,3.01516]
[1738359847030,3.821,3317.3,3316.7,3.01499]
[1738359847185,6.83557,3317.3,3316.8,0.03474919]
[1738359847533,3.01483,3317.0,3316.4,3.0153]
[1738359847686,3.01476,3317.1,3316.3,3.01533]
[1738359847887,3.01501,3316.8,3316.5,0.64273186]
[1738359848085,3.01501,3316.8,3316.5,0.60772846]
[1738359848312,3.01501,3316.8,3316.6,0.03491866]
[1738359848512,3.01504,3316.7,3316.6,0.03491866]
[1738359848917,3.01504,3316.7,3315.9,3.79086]
[1738359848918,3.01527,3316.5,3315.9,3.79086]
[1738359849219,3.01527,3316.5,3316.0,3.394756]
[1738359849378,6.0302,3316.7,3316.0,3.394756]
[1738359849585,3.01508,3316.7,3316.3,0.61020283]
[1738359849785,3.01514,3316.6,3316.4,0.03532469]
[1738359849986,3.01522,3316.5,3316.4,0.03532469]
[1738359850185,3.01522,3316.5,3316.3,0.61020283]
[1738359850931,6.60865167,3316.5,3316.4,0.03532469]
[1738359851114,7.15865167,3316.5,3316.4,0.03532469]
[1738359851432,3.01564,3316.1,3315.5,0.59312367]